bitfinex-derivatives/quotes_SOLF0:USTF0_20250211
["timestamp","ask_amount","ask_price","bid_price","bid_amount"]
[1739234203840,0.03652434,201.99,201.92,0.03375895]
[1739234204941,4.9509,201.96,201.92,0.03375895]
[1739234205144,0.03652434,201.99,201.92,0.03375895]
[1739234205536,4.98672434,201.99,201.94,4.9511]
[1739234205738,0.03652434,201.99,201.94,4.9511]
[1739234206036,0.03652434,201.99,201.92,0.03375895]
[1739234206243,4.9506,201.97,201.93,4.9514]
[1739234206444,0.03652434,201.99,201.93,4.9514]
[1739234207145,4.9505,201.97,201.93,4.9514]
[1739234207940,0.03652434,201.99,201.92,0.03375895]
[1739234209551,0.03652434,201.99,201.94,4.9511]
[1739234209552,4.9502,201.98,201.94,4.9511]
[1739234209846,0.03652434,201.99,201.92,0.03375895]
[1739234210849,4.9505,201.97,201.92,4.98515895]
[1739234211253,4.9505,201.97,201.92,0.03375895]
[1739234211849,0.03652434,201.99,201.92,0.03375895]
[1739234212748,4.9506,201.97,201.93,4.9512]
[1739234212950,0.03652434,201.99,201.92,0.03375895]
[1739234214754,0.03652434,201.99,201.96,4.9506]
[1739234215454,0.03652434,201.99,201.92,0.03375895]
[1739234216150,0.03652434,201.99,201.96,4.9506]
[1739234217855,0.03652434,201.99,201.92,0.03375895]
[1739234218651,0.03652434,201.99,201.98,4.9502]
[1739234219455,0.03652434,201.99,201.97,4.9504]
[1739234219650,0.03652434,201.99,201.96,0.03625297]
[1739234220046,0.03652434,201.99,201.97,4.9502]
[1739234220553,0.03652434,201.99,201.96,0.03625297]
[1739234221250,0.03652434,201.99,201.96,4.98685297]
[1739234221450,0.03652434,201.99,201.96,0.03625297]
[1739234222851,4.9504,201.97,201.96,0.03625297]
[1739234224051,0.03652434,201.99,201.96,0.03625297]
[1739234224757,4.98652434,201.99,201.96,0.03625297]
[1739234225655,0.03652434,201.99,201.96,4.98695297]
[1739234225853,0.03652434,201.99,201.96,0.03625297]
[1739234226747,4.9504,201.97,201.96,0.03625297]
[1739234227152,4.9512,201.94,201.89,4.9523]
[1739234227856,3.76,202.04,201.89,4.9523]
[1739234227857,4.9514,201.93,201.89,4.9523]
[1739234228361,4.98713811,201.93,201.89,4.98900205]
[1739234228655,0.03573811,201.93,201.9,4.9521]
[1739234229256,4.98713811,201.93,201.89,4.98910205]
[1739234229456,4.98713811,201.93,201.89,0.03670205]
[1739234230559,0.03573811,201.93,201.89,0.03670205]
[1739234231451,0.03573811,201.93,201.89,4.98910205]
[1739234231758,0.03573811,201.93,201.89,0.03670205]
[1739234233052,3.0282,202.02,201.89,4.98910205]
[1739234233359,3.0282,202.02,201.8,0.7523]
[1739234233558,4.95,201.99,201.92,4.9514]
[1739234233857,3.0282,202.02,201.8,0.7523]
[1739234234057,4.9497,202.01,201.8,0.7523]
[1739234234355,0.03560959,201.93,201.89,0.03353532]
[1739234234556,3.0282,202.02,201.89,0.03353532]
[1739234234859,3.0282,202.02,201.81,0.88879284]
[1739234235053,3.0282,202.02,201.81,31.58526181]
[1739234235257,3.0282,202.02,201.82,0.88860846]
[1739234235654,3.0282,202.02,201.9,0.03523198]
[1739234235859,0.03547451,201.94,201.9,0.03523198]
[1739234236060,3.0282,202.02,201.9,0.03523198]
[1739234236654,4.9497,202.01,201.93,4.9514]
[1739234237059,3.0282,202.02,201.93,4.9514]
[1739234237356,0.03655924,201.99,201.95,0.03768632]
[1739234238461,0.03655924,201.99,201.97,4.9502]
[1739234238766,20.83997123,202.12,201.95,0.03768632]
[1739234238959,20.83997123,202.12,201.85,1.593]
[1739234238960,4.9477,202.09,202.01,4.9492]
[1739234239155,1.4869,202.11,201.85,18.37364209]
[1739234239356,1.4869,202.11,201.86,0.88776225]
[1739234239563,4.9478,202.08,201.86,0.88776225]
[1739234239765,1.4869,202.11,202.07,5.92357315]
[1739234240270,1.52393882,202.11,202.07,5.92357315]
[1739234240568,4.9477,202.08,202.07,0.03123162]
[1739234241866,4.9477,202.08,202.07,5.95480477]
[1739234243861,0.03703882,202.11,201.9,0.7499]
[1739234244062,1.5023,202.1,202.02,5.92357315]
[1739234244258,4.948,202.07,202.06,5.92357315]
[1739234244460,3.1247,202.12,202.06,5.92357315]
[1739234244664,3.1247,202.12,202.04,5.92357315]
[1739234244867,1.5613,202.12,202.09,5.92357315]
[1739234245066,0.03779772,202.1,202.06,0.03801702]
[1739234245272,0.03779772,202.1,202.09,5.92357315]
[1739234245475,5.92357315,202.12,202.04,5.92357315]
[1739234245669,5.95836679,202.12,202.07,8.66e-06]
[1739234245869,4.9485,202.06,202.02,5.92357315]
[1739234246071,1.576,202.11,202.02,5.92357315]
[1739234246266,9.04197315,202.17,202.1,5.92357315]
[1739234246474,4.9459,202.16,202.12,5.92357315]
[1739234246672,3.1184,202.17,202.12,5.92357315]
[1739234246873,0.03755129,202.16,202.12,0.03775544]
[1739234247076,0.03755129,202.16,202.12,5.544e-05]
[1739234247477,4.9465,202.13,202.12,5.544e-05]
[1739234249186,0.03755129,202.16,202.12,5.92362859]
[1739234249479,83.39370797,202.25,202.15,5.92357315]
[1739234249684,83.39370797,202.25,202.19,9.24186247]
[1739234249884,25.78367123,202.25,202.19,9.24186247]
[1739234250483,25.78367123,202.25,202.2,0.03518074]
[1739234250790,0.03332661,202.24,202.2,0.03518074]
[1739234251183,0.03332661,202.24,202.22,9.24186247]
[1739234251384,83.39370797,202.27,202.22,9.24186247]
[1739234251580,32.97993381,202.37,202.2,0.03518074]
[1739234251581,29.67666175,202.32,202.26,18.48372494]
[1739234251781,29.67666175,202.32,202.31,9.24186247]
[1739234252288,6.175e-05,202.32,202.31,9.24186247]
[1739234253580,6.175e-05,202.32,202.29,9.27692753]
[1739234253785,0.03202606,202.34,202.29,9.27692753]
[1739234254787,0.03202606,202.34,202.29,0.03506506]
[1739234255590,0.03202606,202.34,202.3,56.0819378]
[1739234256091,4.942,202.32,202.3,56.0819378]
[1739234256290,4.942,202.32,202.3,48.3774378]
[1739234256483,4.942,202.32,202.3,33.4028378]
[1739234256784,4.9421,202.31,202.3,33.4028378]
[1739234257092,4.87205393,202.31,202.29,0.03506506]
[1739234257285,4.9427,202.29,202.18,14.77619128]
[1739234257789,14.77619128,202.39,202.18,14.77619128]
[1739234258992,0.0328362,202.31,202.26,0.03170789]
[1739234259292,14.77619128,202.35,202.26,7.89e-06]
[1739234259490,4.9431,202.27,202.19,169.24182593]
[1739234259689,14.77619128,202.4,202.19,169.24182593]
[1739234260095,4.9418,202.33,202.3,52.77420192]
[1739234260288,14.77619128,202.4,202.3,35.45350192]
[1739234260589,14.77619128,202.36,202.3,3.14270192]
[1739234260886,14.77619128,202.36,202.3,1.92e-06]
[1739234261192,4.942,202.32,202.3,1.92e-06]
[1739234261689,1.5913,202.35,202.33,6.595143]
[1739234262693,0.03185737,202.36,202.33,6.595143]
[1739234263591,0.03185737,202.36,202.34,168.39973882]
[1739234264292,14.77619128,202.61,202.34,168.39973882]
[1739234264491,3.1305,202.58,202.41,14.77619128]
[1739234264793,3.1305,202.58,202.42,1.5557]
[1739234265294,4.9365,202.55,202.44,4.9388]
[1739234265492,3.1305,202.58,202.42,1.5557]
[1739234265692,0.03327643,202.52,202.49,131.93550481]
[1739234267998,0.03327643,202.52,202.5,42.11342856]
[1739234268391,3.1305,202.58,202.5,42.11342856]
[1739234268595,8.0661,202.58,202.5,42.11342856]
[1739234269100,3.1305,202.58,202.51,26.44348257]
[1739234269502,0.03639664,202.57,202.51,26.44348257]
[1739234269798,4.97229664,202.57,202.52,0.03500167]
[1739234269992,0.03639664,202.57,202.52,0.03500167]
[1739234270393,4.97229664,202.57,202.52,0.03500167]
[1739234270995,0.03639664,202.57,202.52,0.03500167]
[1739234271904,4.97239664,202.57,202.52,0.03500167]
[1739234272103,0.03639664,202.57,202.52,0.03500167]
[1739234272304,14.81258792,202.57,202.45,6.55392637]
[1739234272698,4.9379,202.49,202.45,6.55392637]
[1739234272900,14.81258792,202.57,202.45,6.55392637]
[1739234273094,14.77619128,202.57,202.45,6.55392637]
[1739234273900,4.9373,202.51,202.49,0.03521351]
[1739234274705,0.03452746,202.53,202.49,0.03521351]
[1739234275203,4.9373,202.51,202.49,0.03521351]
[1739234275501,4.9373,202.51,202.49,1.351e-05]
[1739234277103,1.594,202.52,202.32,14.77619128]
[1739234277298,4.9403,202.39,202.32,14.77619128]
[1739234277705,4.9403,202.39,202.28,19.71889128]
[1739234278202,3.0387,202.47,202.28,14.77619128]
[1739234278502,0.03738889,202.36,202.31,0.03646385]
[1739234278899,3.0387,202.47,202.28,14.77619128]
[1739234279204,0.03735034,202.36,202.31,0.03394713]
[1739234279402,0.03735034,202.36,202.28,14.77619128]
[1739234279702,4.941,202.36,202.31,0.03650976]
[1739234279898,0.0348787,202.34,202.31,0.03650976]
[1739234280300,3.0387,202.47,202.28,14.77619128]
[1739234280499,14.77619128,202.44,202.25,3.0735]
[1739234280804,0.03294913,202.35,202.3,0.0324672]
[1739234281006,0.03294913,202.35,202.28,19.71899128]
[1739234281207,0.03294913,202.35,202.3,0.03546243]
[1739234282405,1.5457,202.43,202.32,14.77619128]
[1739234282705,1.5457,202.43,202.36,14.77619128]
[1739234283104,1.5457,202.43,202.32,14.77619128]
[1739234283908,0.03281255,202.4,202.35,0.03369649]
[1739234284108,0.03281255,202.4,202.36,14.77619128]
[1739234284503,0.03281255,202.4,202.35,0.03369649]
[1739234285802,0.03281255,202.4,202.28,14.77619128]
[1739234286107,0.03281255,202.4,202.25,3.0735]
[1739234286108,0.03281255,202.4,202.25,1.6035]
[1739234286306,4.941,202.36,202.25,1.6035]
[1739234286507,1.474,202.35,202.25,1.6035]
[1739234286906,4.9422,202.31,202.25,1.6035]
[1739234287110,0.03560971,202.32,202.28,0.03382756]
[1739234287310,0.03560971,202.32,202.28,14.81001884]
[1739234287909,0.03560971,202.32,202.28,0.03382756]
[1739234290007,20.36132063,202.45,202.28,14.81001884]
[1739234290206,1.4935,202.44,202.32,14.77619128]
[1739234290506,1.4935,202.44,202.28,14.77619128]
[1739234290810,1.4935,202.44,202.25,6.5469]
[1739234291011,20.36132063,202.42,202.25,6.5469]
[1739234291211,20.36132063,202.42,202.25,1.6035]
[1739234291412,4.9415,202.34,202.32,0.0323776]
[1739234291905,4.9415,202.34,202.32,7.76e-05]
[1739234295013,6.541,202.36,202.32,7.76e-05]
[1739234295312,1.5999,202.36,202.32,7.76e-05]
[1739234295705,4.9414,202.34,202.32,7.76e-05]
[1739234295911,1.5999,202.36,202.32,7.76e-05]
[1739234297011,4.941,202.36,202.32,7.76e-05]
[1739234297414,0.03726767,202.37,202.32,7.76e-05]
[1739234298316,0.03726767,202.37,202.32,4.9418776]
[1739234298509,0.03726767,202.37,202.32,7.76e-05]
[1739234298908,4.97796767,202.37,202.32,7.76e-05]
[1739234299620,0.03726767,202.37,202.32,7.76e-05]
[1739234300620,0.03726767,202.37,202.32,14.77626888]
[1739234300820,1.5096,202.42,202.32,14.77626888]
[1739234301018,1.5096,202.42,202.36,4.9409]
[1739234301218,1.5096,202.42,202.32,14.77619128]
[1739234301520,4.9409,202.36,202.29,4.9426]
[1739234301720,1.5096,202.42,202.25,16.37969128]
[1739234302019,4.9791298,202.35,202.3,0.03548346]
[1739234302219,0.0379298,202.35,202.3,0.03548346]
[1739234302815,4.9421,202.32,202.3,0.03548346]
[1739234303015,0.0379298,202.35,202.3,0.03548346]
[1739234303616,4.9421,202.31,202.3,0.03548346]
[1739234303816,0.0379298,202.35,202.3,0.03548346]
[1739234304018,4.9419,202.32,202.3,0.03548346]
[1739234304212,0.0379298,202.35,202.3,0.03548346]
[1739234306716,4.9421,202.31,202.3,0.03548346]
[1739234307321,4.942,202.32,202.3,0.03548346]
[1739234307521,1.555,202.34,202.3,0.03548346]
[1739234307925,4.9414,202.34,202.3,0.03548346]
[1739234308325,0.0379298,202.35,202.3,0.03548346]
[1739234308725,4.9419,202.32,202.3,0.03548346]
[1739234309122,0.0379298,202.35,202.3,0.03548346]
[1739234309320,4.9419,202.32,202.3,0.03548346]
[1739234309524,0.0379298,202.35,202.3,0.03548346]
[1739234310125,0.0379298,202.35,202.31,4.942]
[1739234310322,0.0379298,202.35,202.32,14.77619128]
[1739234312323,0.0379298,202.35,202.31,6.5249]
[1739234312524,0.0379298,202.35,202.31,1.5829]
[1739234312728,0.0379298,202.35,202.3,0.03548346]
[1739234312930,4.9421,202.31,202.3,0.03548346]
[1739234313321,0.0379298,202.35,202.3,0.03548346]
[1739234314431,4.9421,202.31,202.3,0.03548346]
[1739234315230,4.9421,202.31,202.3,8.346e-05]
[1739234316528,14.87,202.3,202.05,52.90016855]
[1739234316727,123.45448256,202.31,201.87,59.0034658]
[1739234316728,14.77619128,202.08,201.9,4.669]
[1739234317026,19.72519128,202.03,202.02,95.50351382]
[1739234317230,14.77619128,202.07,202.02,55.83641382]
[1739234317431,14.77619128,202.07,202.02,48.35071382]
[1739234317730,4.9488,202.04,202.02,48.38496944]
[1739234317930,14.77619128,202.03,201.99,80.54204139]
[1739234318126,4.9497,202.0,201.99,21.62106102]
[1739234318322,14.77619128,202.03,201.96,164.91938101]
[1739234318522,14.77619128,201.97,201.96,164.91938101]
[1739234319127,14.77619128,201.97,201.96,81.47833727]
[1739234319731,71.55819739,201.97,201.94,0.03675434]
[1739234320532,56.78200611,201.97,201.94,0.03675434]
[1739234320933,71.55819739,201.97,201.94,0.03675434]
[1739234321230,56.78200611,201.96,201.94,0.03675434]
[1739234322337,121.88311887,201.95,201.94,0.03675434]
[1739234322528,121.88311887,201.95,201.84,10.97356494]
[1739234323636,0.036489,201.92,201.87,0.03711053]
[1739234323936,0.036489,201.92,201.9,4.9521]
[1739234324133,121.88311887,201.95,201.87,0.03711053]
[1739234324333,121.88311887,201.95,201.93,4.9514]
[1739234324529,107.33911887,201.95,201.89,14.77619128]
[1739234325039,107.33911887,201.95,201.92,4.9516]
[1739234325243,0.03553168,201.94,201.92,4.9516]
[1739234327239,20.2331185,202.02,201.93,14.77619128]
[1739234327439,20.2331185,202.02,201.97,14.77619128]
[1739234328344,20.26495632,202.02,201.97,14.8073708]
[1739234328545,0.03183782,202.02,201.97,14.8073708]
[1739234328736,0.03183782,202.02,202.01,4.9495]
[1739234329341,0.03183782,202.02,201.97,14.8073708]
[1739234329944,0.03183782,202.02,202.0,4.9496]
[1739234330648,0.03183782,202.02,201.97,14.8073708]
[1739234330845,14.77619128,202.13,201.97,14.8073708]
[1739234330846,14.77619128,202.21,202.01,246.36166727]
[1739234331053,3.0946,202.26,202.06,14.77619128]
[1739234331054,1.5419,202.2,202.06,14.77619128]
[1739234331350,1.5419,202.2,202.02,14.77619128]
[1739234331645,1.5419,202.2,202.01,231.58547599]
[1739234331847,14.77619128,202.17,202.01,231.58547599]
[1739234332147,14.80736937,202.13,202.08,0.03690604]
[1739234333852,0.03117809,202.13,202.08,0.03690604]
[1739234336347,14.77619128,202.18,202.08,0.03690604]
[1739234336548,14.77619128,202.13,202.08,0.03690604]
[1739234337048,3.2079,202.12,202.08,0.03690604]
[1739234337450,3.23942184,202.12,202.08,0.03690604]
[1739234337650,3.19417359,202.12,202.08,0.03690604]
[1739234337851,3.19417359,202.12,202.01,169.45278732]
[1739234339146,3.19417359,202.12,202.04,0.0347277]
[1739234340352,14.77619128,202.09,202.04,0.0347277]
[1739234341053,3.19417359,202.12,202.04,0.0347277]
[1739234343155,3.19417359,202.12,202.04,4.9833277]
[1739234343759,3.19417359,202.12,202.04,0.0347277]
[1739234346863,0.03152184,202.12,202.04,0.0347277]
[1739234348862,0.03152184,202.12,202.05,4.9484]
[1739234349066,0.03152184,202.12,202.04,0.0347277]
[1739234349963,0.03152184,202.12,202.05,11.22994467]
[1739234352662,0.03152184,202.12,202.11,6.58875184]
[1739234352858,1.4726,202.16,202.11,6.58875184]
[1739234353962,1.50600245,202.16,202.11,0.0350906]
[1739234357967,14.77619128,202.14,202.04,6.58875184]
[1739234358167,14.77619128,202.14,202.06,6.58875184]
[1739234359267,0.03595075,202.12,202.08,0.03401781]
[1739234362669,0.03595075,202.12,202.09,4.53524467]
[1739234365969,0.03595075,202.12,202.08,6.62276965]
[1739234365970,0.03595075,202.12,202.08,0.03401781]
[1739234375587,9.26285563,202.1,202.08,0.03401781]
[1739234376588,9.26285563,202.1,201.96,3.1225]
[1739234376787,9.26285563,202.07,201.96,3.1225]
[1739234377279,9.26285563,202.1,201.96,3.1225]
[1739234377484,9.26285563,202.1,201.96,12.38535563]
[1739234377891,0.03609997,202.05,202.01,0.03657854]
[1739234384091,9.26285563,202.04,202.01,0.03657854]
[1739234384895,0.03609997,202.05,202.01,0.03657854]
[1739234393797,0.03609997,202.05,202.01,4.98597854]
[1739234394405,0.03609997,202.05,202.01,0.03657854]
[1739234396311,0.03609997,202.05,202.01,4.98577854]
[1739234396510,0.03609997,202.05,202.01,0.03657854]
[1739234396909,0.03609997,202.05,202.01,4.98597854]
[1739234397305,0.03609997,202.05,202.01,0.03657854]
[1739234398310,0.03609997,202.05,202.03,4.9488]
[1739234398904,0.03609997,202.05,202.02,4.9492]
[1739234399106,0.03609997,202.05,202.01,0.03657854]
[1739234403912,1.4726,202.16,202.03,9.26285563]
[1739234404113,10.73545563,202.16,202.03,9.26285563]
[1739234404413,10.73545563,202.16,202.0,18.88735563]
[1739234404810,10.73545563,202.16,202.0,13.93785563]
[1739234405209,0.03537429,202.1,202.06,0.03230317]
[1739234407215,0.03537429,202.1,202.06,9.2951588]
[1739234407416,0.03537429,202.1,202.06,0.03230317]
[1739234411322,0.03537429,202.1,202.06,9.2951588]
[1739234411518,9.26285563,202.18,202.06,0.03230317]
[1739234411817,9.26285563,202.18,202.05,14.21135563]
[1739234412913,0.03219363,202.14,202.09,0.03578469]
[1739234417516,0.03219363,202.14,202.11,9.26285563]
[1739234417721,9.29504926,202.14,202.09,0.03578469]
[1739234419521,3.0446,202.13,202.09,0.03578469]
[1739234423721,5.9259298,202.11,202.09,0.03578469]
[1739234426515,0.03219363,202.14,202.1,5.9259298]
[1739234426715,10.77493579,202.25,202.12,5.9259298]
[1739234426920,137.66560313,202.31,202.24,5.9259298]
[1739234427121,131.03592411,202.31,202.29,4.9424]
[1739234427314,131.03592411,202.32,202.3,5.9259298]
[1739234427625,131.03592411,202.32,202.31,9.23039497]
[1739234428027,113.31426932,202.32,202.31,9.23039497]
[1739234428522,112.37616932,202.32,202.31,9.23039497]
[1739234428725,110.79096932,202.32,202.31,9.23039497]
[1739234429428,170.21030315,202.34,202.31,9.23039497]
[1739234429429,0.03786999,202.34,202.31,9.23039497]
[1739234429831,3.0623,202.44,202.31,9.23039497]
[1739234430028,3.0623,202.44,202.36,9.23039497]
[1739234430221,3.0623,202.44,202.25,6.58875184]
[1739234430426,3.0623,202.44,202.33,9.23039497]
[1739234430931,0.03693415,202.41,202.36,0.03368941]
[1739234432119,9.23039497,202.49,202.36,0.03368941]
[1739234432120,9.23039497,202.56,202.4,4.9399]
[1739234432319,3.102,202.52,202.45,9.23039497]
[1739234432925,3.102,202.52,202.42,9.23039497]
[1739234433327,3.102,202.52,202.29,203.23039497]
[1739234433328,0.03184527,202.49,202.45,0.03265918]
[1739234433524,3.102,202.52,202.39,9.23039497]
[1739234433824,0.03454584,202.49,202.45,0.03326082]
[1739234434032,0.03454584,202.49,202.45,9.26365579]
[1739234434933,0.03454584,202.49,202.45,0.03326082]
[1739234439137,3.102,202.52,202.45,0.03326082]
[1739234440235,0.02992787,202.51,202.45,0.03326082]
[1739234440637,0.02992787,202.51,200.89,21.95199947]
[1739234440638,9.23039497,202.5,202.36,9.23039497]
[1739234441136,9.23039497,202.47,202.33,9.23039497]
[1739234441332,9.23039497,202.47,202.27,6.58875184]
[1739234441536,9.23039497,202.44,202.3,9.23039497]
[1739234441738,4.97655527,202.39,202.35,0.0328799]
[1739234441940,4.97655527,202.39,202.27,15.81914681]
[1739234441941,2.9677,202.38,202.27,15.81914681]
[1739234442539,4.9409,202.37,202.27,9.23039497]
[1739234443039,0.03260712,202.34,202.3,0.03680174]
[1739234443230,0.03260712,202.34,202.3,9.26719671]
[1739234444939,0.03260712,202.34,202.33,9.23039497]
[1739234445136,2.9677,202.38,202.33,9.23039497]
[1739234446339,0.03636234,202.38,202.33,9.23039497]
[1739234446540,0.03636234,202.38,202.36,9.23039497]
[1739234447543,0.03636234,202.38,202.35,0.03437048]
[1739234448243,9.26675731,202.38,202.23,9.23039497]
[1739234448439,1.4768,202.37,202.23,9.23039497]
[1739234449237,0.03311527,202.32,202.28,0.03618976]
[1739234449637,4.9425,202.3,202.28,0.03618976]
[1739234449937,4.9425,202.3,202.2,9.23039497]
[1739234450145,4.9426,202.29,202.2,9.23039497]
[1739234450736,1.5467,202.31,202.2,9.23039497]
[1739234450941,0.03201176,202.27,202.22,0.03175336]
[1739234454343,0.03201176,202.27,202.26,4.9433]
[1739234456945,1.4933,202.36,202.3,4.9423]
[1739234458145,0.03168246,202.35,202.31,0.03280057]
[1739234460040,0.03168246,202.35,202.31,4.97490057]
[1739234460245,0.03168246,202.35,202.31,0.03280057]
[1739234460945,4.9417,202.33,202.21,26.35500737]
[1739234461145,0.03168246,202.35,202.25,4.9434]
[1739234461346,1.4933,202.36,202.21,26.35500737]
[1739234461535,4.9414,202.35,202.21,26.35500737]
[1739234461738,1.4933,202.36,202.25,4.9436]
[1739234462135,0.03563001,202.33,202.28,0.03309394]
[1739234463142,4.97733001,202.33,202.28,0.03309394]
[1739234463543,0.03563001,202.33,202.28,0.03309394]
[1739234464741,0.03563001,202.33,202.3,14.79124442]
[1739234465638,0.03563001,202.33,202.32,4.9419]
[1739234466844,1.4882,202.46,202.3,14.79124442]
[1739234467049,1.4882,202.46,202.34,14.79124442]
[1739234467346,1.4882,202.46,202.38,14.79124442]
[1739234467942,0.03236058,202.44,202.4,0.03420446]
[1739234472655,14.79124442,202.63,202.42,14.79124442]
[1739234472954,35.18907051,202.66,202.47,4.938]
[1739234472955,1.5099,202.59,202.47,4.938]
[1739234473151,4.9358,202.57,202.46,14.79124442]
[1739234473954,0.03387306,202.54,202.49,0.03228451]
[1739234474952,4.9375,202.5,202.49,0.03228451]
[1739234475357,0.03387306,202.54,202.38,41.14625179]
[1739234475554,14.79124442,202.55,202.38,41.14625179]
[1739234475555,1.4668,202.49,202.38,41.14625179]
[1739234475749,1.4668,202.49,202.38,26.35500737]
[1739234475957,1.5964,202.48,202.38,26.35500737]
[1739234476150,4.9387,202.45,202.38,26.35500737]
[1739234476354,1.5964,202.48,202.38,26.35500737]
[1739234476656,0.03384253,202.44,202.39,0.03627838]
[1739234477458,0.03384253,202.44,202.41,14.79124442]
[1739234477857,0.03384253,202.44,202.39,0.03627838]
[1739234479557,0.03384253,202.44,202.41,14.79124442]
[1739234480162,0.03384253,202.44,202.39,0.03627838]
[1739234480360,0.03384253,202.44,202.41,14.79124442]
[1739234480659,1.5686,202.57,202.41,14.79124442]
[1739234480660,4.9365,202.55,202.41,14.79124442]
[1739234480860,2.9685,202.56,202.41,14.79124442]
[1739234481066,2.9685,202.56,202.45,14.79124442]
[1739234481364,7.9047,202.56,202.45,14.79124442]
[1739234481661,2.9685,202.56,202.45,14.79124442]
[1739234481866,0.03261917,202.53,202.48,0.03426437]
[1739234482759,0.03261917,202.53,202.49,14.79124442]
[1739234483957,1.4624,202.64,202.49,14.79124442]
[1739234484156,1.4624,202.64,202.54,19.72774442]
[1739234484657,1.4624,202.64,202.55,4.9362]
[1739234485257,1.4624,202.64,202.57,0.03349135]
[1739234485258,0.03264274,202.62,202.57,0.03349135]
[1739234488269,0.03264274,202.62,202.47,14.79124442]
[1739234488574,1.4624,202.64,202.47,14.79124442]
[1739234488872,1.4624,202.64,202.42,0.1027]
[1739234489068,1.4624,202.64,202.46,14.79124442]
[1739234489264,4.935,202.61,202.5,14.79124442]
[1739234489570,0.0378756,202.57,202.53,0.03195485]
[1739234490066,0.0378756,202.57,202.54,14.79124442]
[1739234490460,0.0378756,202.57,202.55,4.9362]
[1739234490665,0.0378756,202.57,202.54,14.79124442]
[1739234491074,0.0378756,202.57,202.53,0.03195485]
[1739234492671,0.0378756,202.57,202.41,14.79124442]
[1739234492873,0.0378756,202.57,202.46,4.9382]
[1739234493075,1.4578,202.58,202.46,4.9382]
[1739234493267,1.4624,202.64,202.48,14.79124442]
[1739234493468,2.9202,202.64,202.48,14.79124442]
[1739234493866,0.0343335,202.58,202.54,0.03277286]
[1739234495074,0.0343335,202.58,202.56,14.79124442]
[1739234495372,0.0343335,202.58,202.57,4.9358]
[1739234497175,0.18467,202.65,202.56,14.79124442]
[1739234497374,0.18467,202.65,202.62,14.79124442]
[1739234497577,0.18467,202.65,202.63,4.9342]
[1739234497775,0.18467,202.65,202.62,14.79124442]
[1739234498777,0.18467,202.65,202.61,0.03171868]
[1739234499677,3.31147,202.65,202.61,0.03171868]
[1739234500179,4.9342,202.64,202.61,0.03171868]
[1739234500681,4.80647,202.65,202.61,0.03171868]
[1739234500880,4.80647,202.65,202.54,14.79124442]
[1739234502478,0.03636173,202.62,202.57,0.03129856]
[1739234502683,0.03636173,202.62,202.58,14.79124442]
[1739234504284,0.18467,202.65,202.58,14.79124442]
[1739234504578,0.18467,202.65,202.6,4.9349]
[1739234504881,0.18467,202.65,202.58,14.79124442]
[1739234505179,0.18467,202.65,202.58,19.72664442]
[1739234505576,0.03327722,202.64,202.58,19.72664442]
[1739234506082,0.03327722,202.64,202.59,4.9352]
[1739234506283,0.03327722,202.64,202.58,14.79124442]
[1739234506983,0.03327722,202.64,202.6,4.9348]
[1739234507179,0.03327722,202.64,202.58,14.79124442]
[1739234507378,0.18467,202.65,202.62,14.79124442]
[1739234508883,0.18467,202.65,202.63,4.9343]
[1739234509885,0.18467,202.65,202.61,0.03736028]
[1739234512180,0.18467,202.65,202.63,4.9342]
[1739234514284,0.18467,202.65,202.62,14.79124442]
[1739234514883,0.18467,202.65,202.63,4.9343]
[1739234515387,5.74,202.81,202.62,14.79124442]
[1739234515388,14.79124442,202.84,202.62,14.79124442]
[1739234515584,3.0957,202.79,202.62,14.79124442]
[1739234516185,4.9319,202.73,202.64,4.9338]
[1739234516584,3.0957,202.79,202.66,0.03294214]
[1739234516992,3.0957,202.79,202.62,14.79124442]
[1739234517183,0.9066954,202.78,202.62,14.79124442]
[1739234517381,0.9066954,202.78,202.7,0.03167719]
[1739234517686,0.9066954,202.78,202.62,14.79124442]
[1739234517888,14.79124442,202.76,202.58,19.72674442]
[1739234518086,14.79124442,202.76,202.54,14.79124442]
[1739234518287,0.90678599,202.75,202.54,14.79124442]
[1739234518685,1.5039,202.74,202.54,14.79124442]
[1739234518882,1.5039,202.74,202.53,6.58875184]
[1739234518883,4.9343,202.63,202.62,1.668e-05]
[1739234519087,14.79124442,202.66,202.53,6.58875184]
[1739234519289,16.29304442,202.62,202.53,6.58875184]
[1739234519486,1.5018,202.62,202.53,6.58875184]
[1739234520290,0.0330333,202.6,202.55,0.0344615]
[1739234520688,0.0330333,202.6,202.48,26.35500737]
[1739234520993,14.79124442,202.58,202.48,26.35500737]
[1739234521886,4.9366,202.54,202.48,26.35500737]
[1739234522090,0.03164079,202.55,202.51,0.03622274]
[1739234522291,0.03164079,202.55,202.48,26.35500737]
[1739234522895,4.9366,202.54,202.4,4.9399]